fUST/lending_fUST_20260112
["ID","MTS","AMOUNT","RATE_DAILY","PERIOD"]
[401365604,1768158643223,-1025.59078617,0.00015342,2]
[401365605,1768158643232,-2000.0,0.00015342,2]
[401365608,1768158643242,-507.57819343,0.00015342,2]
[401365609,1768158643251,-250.0,0.00015343,2]
[401365611,1768158643260,-250.0,0.00015343,2]
[401365614,1768158643270,-250.0,0.00015343,2]
[401365615,1768158643279,-6266.0,0.00015343,2]
[401365617,1768158643288,-151.0,0.000154,2]
[401365619,1768158643298,-1000.0,0.00015461,2]
[401365621,1768158643307,-492.0,0.00015461,2]
[401365623,1768158643316,-500.0,0.00015464,2]
[401365625,1768158643325,-2500.0,0.00015464,2]
[401365627,1768158643334,-2500.0,0.00015464,2]
[401365629,1768158643343,-2500.0,0.00015464,2]
[401365631,1768158643352,-374.83618263,0.00015464,2]
[401365633,1768158643362,-2500.0,0.00015464,2]
[401365635,1768158643371,-2500.0,0.00015464,2]
[401365638,1768158643382,-2500.0,0.00015464,2]
[401365640,1768158643392,-1055.48898116,0.00015464,2]
[401365642,1768158643402,-2500.0,0.00015464,2]
[401365644,1768158643412,-1874.68815725,0.00015464,2]
[401365646,1768158643422,-2500.0,0.00015464,2]
[401365648,1768158643432,-2500.0,0.00015464,2]
[401365650,1768158643443,-2500.0,0.00015464,2]
[401365652,1768158643452,-1002.33157316,0.00015464,2]
[401365654,1768158643462,-2500.0,0.00015464,2]
[401365656,1768158643471,-6266.0,0.0001548,2]
[401365658,1768158643481,-5861.01138056,0.000156,2]
[401365660,1768158643491,-6266.0,0.00015617,2]
[401365662,1768158643500,-151.0,0.000157,2]
[401365664,1768158643509,-6266.0,0.00015754,2]
[401365666,1768158643519,-473.45,0.000158,2]
[401365668,1768158643528,-1500.0,0.00015864,2]
[401365670,1768158643537,-626.0,0.0001589,2]
[401365672,1768158643546,-2500.0,0.0001589,2]
[401365674,1768158643555,-2500.0,0.0001589,2]
[401365676,1768158643564,-1097.05305078,0.0001589,2]
[401365678,1768158643574,-746.08427355,0.0001589,2]
[401365680,1768158643587,-1379.03607709,0.0001589,2]
[401365682,1768158643596,-926.89565163,0.0001589,2]
[401365684,1768158643605,-504.51727604,0.0001589,2]
[401365686,1768158643615,-2500.0,0.0001589,2]
[401365688,1768158643625,-2500.0,0.0001589,2]
[401365690,1768158643635,-2500.0,0.0001589,2]
[401365692,1768158643647,-1643.18421046,0.0001589,2]
[401365694,1768158643656,-2500.0,0.0001589,2]
[401365696,1768158643666,-2500.0,0.0001589,2]
[401365698,1768158643675,-6266.0,0.00015891,2]
[401365700,1768158643685,-500.0,0.00015999,2]
[401365702,1768158643695,-3000.0,0.00016,2]
[401365704,1768158643704,-153.66,0.00016,2]
[401365706,1768158643713,-3000.0,0.0001601,2]
[401365708,1768158643722,-3000.0,0.00016012,2]
[401365710,1768158643731,-3006.66545063,0.00016012,2]
[401365712,1768158643741,-3000.0,0.00016012,2]
[401365714,1768158643751,-1897.40421659,0.00016012,2]
[401365716,1768158643760,-3000.0,0.00016012,2]
[401365718,1768158643769,-3000.0,0.00016012,2]
[401365720,1768158643778,-3000.0,0.00016012,2]
[401365722,1768158643787,-466.62413338,0.00016012,2]
[401365724,1768158643796,-3000.0,0.00016012,2]
[401365726,1768158643806,-3000.0,0.00016012,2]
[401365728,1768158643815,-3000.0,0.00016012,2]
[401365730,1768158643824,-3000.0,0.0001602,2]
[401365732,1768158643834,-250.0,0.00016028,2]
[401365734,1768158643843,-6266.0,0.00016028,2]
[401365736,1768158643852,-3000.0,0.0001603,2]
[401365738,1768158643862,-500.0,0.00016039,2]
[401365740,1768158643871,-3000.0,0.0001604,2]
[401365742,1768158643881,-3000.0,0.0001605,2]
[401365744,1768158643890,-3000.0,0.0001606,2]
[401365746,1768158643899,-3000.0,0.0001607,2]
[401365748,1768158643908,-3000.0,0.0001608,2]
[401365750,1768158643918,-3000.0,0.0001609,2]
[401365752,1768158643927,-500.0,0.00016099,2]
[401365754,1768158643936,-3000.0,0.000161,2]
[401365756,1768158643945,-3000.0,0.0001611,2]
[401365758,1768158643954,-3000.0,0.0001612,2]
[401365760,1768158643963,-3000.0,0.0001613,2]
[401365762,1768158643972,-3000.0,0.0001614,2]
[401365764,1768158643982,-3000.0,0.0001615,2]
[401365766,1768158643991,-3000.0,0.0001616,2]
[401365768,1768158644001,-500.0,0.00016164,2]
[401365770,1768158644010,-3669.21180387,0.00016164,2]
[401365772,1768158644019,-1600.0,0.00016164,2]
[401365774,1768158644028,-6266.0,0.00016165,2]
[401365776,1768158644038,-154502.517058,0.00016165,2]
[401365778,1768158644046,-3000.0,0.0001617,2]
[401365780,1768158644055,-3000.0,0.0001618,2]
[401365782,1768158644065,-3000.0,0.0001619,2]
[401365784,1768158644074,-4730.949048,0.000162,2]
[401365786,1768158644084,-151.0,0.000163,2]
[401365788,1768158644093,-473.45,0.000163,2]
[401365790,1768158644103,-6266.0,0.00016302,2]
[401365792,1768158644112,-151.0,0.000164,2]
[401365794,1768158644121,-1800.0,0.00016412,2]
[401365796,1768158644130,-164.19129262,0.00016438,2]
[401365798,1768158644140,-3002.60955562,0.00016438,2]
[401365800,1768158644149,-3000.0,0.00016438,2]
[401365802,1768158644159,-3000.0,0.00016438,2]
[401365804,1768158644169,-1634.65901332,0.00016438,2]
[401365806,1768158644178,-3000.0,0.00016438,2]
[401365808,1768158644188,-3000.0,0.00016438,2]
[401365810,1768158644198,-3000.0,0.00016438,2]
[401365822,1768158644299,-260.15865923,0.00016438,2]
[401365824,1768158644310,-6266.0,0.00016439,2]
[401365826,1768158644320,-200.0,0.00016473,2]
[401365828,1768158644329,-500.0,0.0001656,2]
[401365830,1768158644339,-3500.0,0.0001656,2]
[401365832,1768158644348,-3500.0,0.0001656,2]
[401365834,1768158644357,-3500.0,0.0001656,2]
[401365836,1768158644367,-3500.0,0.0001656,2]
[401365838,1768158644376,-3500.0,0.0001656,2]
[401365840,1768158644386,-3500.0,0.0001656,2]
[401365842,1768158644395,-3500.0,0.0001656,2]
[401365844,1768158644405,-3500.0,0.0001656,2]
[401365846,1768158644414,-6266.0,0.00016576,2]
[401365848,1768158644423,-6266.0,0.00016713,2]
[401365850,1768158644433,-153.66,0.000168,2]
[401365853,1768158644442,-473.45,0.000168,2]
[401365855,1768158644452,-2258.0,0.00016823,2]
[401365857,1768158644461,-6266.0,0.0001685,2]
[401365859,1768158644471,-2100.0,0.0001696,2]
[401365861,1768158644481,-552.92932298,0.00016986,2]
[401365862,1768158644490,-3500.0,0.00016986,2]
[401365864,1768158644499,-3500.0,0.00016986,2]
[401365867,1768158644509,-3500.0,0.00016986,2]
[401365868,1768158644518,-3500.0,0.00016986,2]
[401365870,1768158644527,-6266.0,0.00016987,2]
[401365872,1768158644536,-1000.0,0.00017007,2]
[401365874,1768158644546,-791.0,0.00017007,2]
[401365876,1768158644555,-151.0,0.00017108,2]
[401365878,1768158644564,-4000.0,0.00017108,2]
[401365880,1768158644573,-4000.0,0.00017108,2]
[401365882,1768158644586,-4000.0,0.00017108,2]
[401365884,1768158644596,-4000.0,0.00017108,2]
[401365886,1768158644606,-4000.0,0.00017108,2]
[401365888,1768158644615,-4000.0,0.00017108,2]
[401365890,1768158644625,-4000.0,0.00017108,2]
[401365892,1768158644634,-4000.0,0.00017108,2]
[401365894,1768158644643,-6266.0,0.00017124,2]
[401365896,1768158644653,-2400.0,0.0001726,2]
[401365898,1768158644664,-6266.0,0.00017261,2]
[401365900,1768158644673,-734.65823465,0.00017298,2]
[401365902,1768158644683,-473.45,0.000173,2]
[401365904,1768158644693,-6266.0,0.00017398,2]
[401365906,1768158644702,-5000.0,0.00017412,2]
[401365908,1768158644712,-611.55196731,0.00017441,7]
[401365910,1768158644721,-151.0,0.000175,2]
[401365912,1768158644730,-2400.0,0.00017508,2]
[401365914,1768158644739,-4000.0,0.00017534,2]
[401365916,1768158644749,-4000.0,0.00017534,2]
[401365918,1768158644758,-4000.0,0.00017534,2]
[401365920,1768158644768,-2578.16970935,0.00017534,2]
[401365922,1768158644777,-6266.0,0.00017535,2]
[401365924,1768158644786,-153.66,0.000176,2]
[401365926,1768158644795,-1020.77887688,0.00017656,2]
[401365928,1768158644806,-4500.0,0.00017656,2]
[401365930,1768158644816,-4500.0,0.00017656,2]
[401365931,1768158644825,-4500.0,0.00017656,2]
[401365932,1768158644835,-2000.0,0.00017656,2]
[401365933,1768158644844,-3378.46600243,0.00017656,2]
[401365934,1768158644854,-4500.0,0.00017656,2]
[401365935,1768158644864,-6266.0,0.00017672,2]
[401365936,1768158644873,-473.45,0.000178,2]
[401365937,1768158644883,-6266.0,0.00017809,2]
[401365938,1768158644892,-171.47,0.00017826,2]
[401365939,1768158644902,-400.0,0.00017842,2]
[401365940,1768158644912,-6266.0,0.00017946,2]
[401365941,1768158644922,-1344.72420012,0.00018056,2]
[401365942,1768158644931,-5861.01138056,0.00018066,2]
[401365943,1768158644940,-3000.0,0.00018082,2]
[401365944,1768158644950,-4500.0,0.00018082,2]
[401365945,1768158644960,-4500.0,0.00018082,2]
[401365946,1768158644969,-6266.0,0.00018083,2]
[401365947,1768158644979,-5000.0,0.00018204,2]
[401365948,1768158644988,-5000.0,0.00018204,2]
[401365949,1768158644998,-5142.48470631,0.00018204,2]
[401365950,1768158645007,-5000.0,0.00018204,2]
[401365951,1768158645017,-6266.0,0.0001822,2]
[401365952,1768158645026,-473.45,0.000183,2]
[401365953,1768158645035,-301.71937705,0.00018356,2]
[401365954,1768158645044,-6266.0,0.00018357,2]
[401365956,1768158645054,-153.66,0.000184,2]
[401365958,1768158645063,-6284.44462292,0.00018494,2]
[401365960,1768158645073,-151.0,0.000185,2]
[401365962,1768158645082,-1771.0,0.00018505,2]
[401365964,1768158645091,-5000.0,0.0001863,2]
[401365966,1768158645100,-5000.0,0.0001863,2]
[401365968,1768158645110,-1000.0,0.00018708,2]
[401365970,1768158645119,-1000.0,0.00018708,2]
[401365971,1768158645127,-342.91,0.0001871,2]
[401365974,1768158645137,-611.55196731,0.00018718,8]
[401365975,1768158645147,-5500.0,0.00018752,2]
[401365977,1768158645156,-5500.0,0.00018752,2]
[401365979,1768158645165,-5500.0,0.00018752,2]
[401365981,1768158645174,-5000.0,0.00018863,2]
[401365983,1768158645183,-303.10001613,0.000189,2]
[401365985,1768158645192,-303.10001603,0.000189,2]
[401365987,1768158645201,-473.45,0.000189,2]
[401365989,1768158645211,-303.10001603,0.00019089,2]
[401365991,1768158645220,-153.66,0.000191,2]
[401365993,1768158645229,-242.62689371,0.00019178,2]
[401365995,1768158645239,-1918.97723055,0.00019178,2]
[401365997,1768158645248,-5500.0,0.00019178,2]
[401365999,1768158645258,-162.99,0.000192,2]
[401366001,1768158645267,-164.08,0.000192,2]
[401366003,1768158645277,-3271.44,0.000192,2]
[401366005,1768158645286,-303.10001596,0.00019278,2]
[401366007,1768158645295,-811.54107316,0.00019298,2]
[401366009,1768158645304,-3033.32597111,0.000193,2]
[401366011,1768158645314,-1321.06911742,0.000193,2]
[401366013,1768158645323,-6000.0,0.000193,2]
[401366015,1768158645332,-167.64,0.000194,2]
[401366017,1768158645342,-151.0,0.000194,2]
[401366019,1768158645351,-473.45,0.000194,2]
[401366020,1768158645360,-151.0,0.000196,2]
[401366022,1768158645369,-171.47,0.00019613,2]
[401366024,1768158645378,-155.5739919,0.00019668,2]
[401366027,1768158645388,-6000.0,0.00019726,2]
[401366029,1768158645399,-1041.66666667,0.00019786,2]
[401366030,1768158645410,-500.0,0.00019799,2]
[401366032,1768158645419,-3732.45700431,0.00019848,2]
[401366034,1768158645427,-153.66,0.000199,2]
[401366036,1768158645437,-473.45,0.000199,2]
[401366038,1768158645446,-611.55196731,0.00019995,9]
[401366040,1768158645455,-151.55000802,0.0002,2]
[401366042,1768158645464,-6500.0,0.00020274,2]
[401366044,1768158645474,-151.0,0.000204,3]
[401366046,1768158645483,-473.45,0.000204,2]
[401366048,1768158645492,-5861.01138056,0.00020532,2]
[401366050,1768158645501,-3506.779351,0.00020548,2]
[401366052,1768158645511,-764.1,0.00020578,2]
[401366054,1768158645521,-1000.0,0.00020579,2]
[401366056,1768158645530,-1000.0,0.00020579,2]
[401366058,1768158645539,-579.0,0.00020579,2]
[401366060,1768158645548,-151.0,0.000207,4]
[401366062,1768158645557,-153.66,0.000207,2]
[401366064,1768158645566,-7000.0,0.00020822,2]
[401366066,1768158645580,-473.45,0.000209,2]
[401366068,1768158645591,-3000.0,0.00021,2]
[401366070,1768158645601,-3000.0,0.0002101,2]
[401366072,1768158645610,-3000.0,0.0002102,2]
[401366074,1768158645619,-3000.0,0.0002103,2]
[401366076,1768158645627,-3000.0,0.0002104,2]
[401366078,1768158645637,-500.0,0.00021049,2]
[401366080,1768158645646,-3000.0,0.0002105,2]
[401366082,1768158645658,-3000.0,0.0002106,2]
[401366084,1768158645667,-3000.0,0.0002107,2]
[401366086,1768158645676,-3000.0,0.0002108,2]
[401366087,1768158645686,-3000.0,0.0002109,2]
[401366089,1768158645696,-3000.0,0.000211,2]
[401366091,1768158645706,-3000.0,0.0002111,2]
[401366094,1768158645716,-500.0,0.00021119,2]
[401366096,1768158645725,-3000.0,0.0002112,2]
[401366098,1768158645734,-3000.0,0.0002113,2]
[401366099,1768158645743,-3000.0,0.0002114,2]
[401366101,1768158645752,-3000.0,0.0002115,2]
[401366103,1768158645762,-3000.0,0.0002116,2]
[401366105,1768158645771,-3000.0,0.0002117,2]
[401366107,1768158645780,-3000.0,0.0002118,2]
[401366109,1768158645789,-500.0,0.00021189,2]
[401366111,1768158645799,-620.51614657,0.00021189,2]
[401366113,1768158645808,-3000.0,0.0002119,2]
[401366115,1768158645818,-3000.0,0.000212,2]
[401366118,1768158645827,-3271.44,0.000212,2]
[401366120,1768158645836,-32701.71,0.000212,2]
[401366122,1768158645845,-221.941164,0.000212,2]
[401366124,1768158645854,-221.941164,0.000212,2]
[401366126,1768158645863,-221.941164,0.000212,2]
[401366128,1768158645872,-221.941164,0.000212,2]
[401366130,1768158645882,-3000.0,0.0002121,2]
[401366132,1768158645891,-3000.0,0.0002122,2]
[401366134,1768158645900,-3000.0,0.0002123,2]
[401366136,1768158645908,-3000.0,0.0002124,2]
[401366138,1768158645918,-3000.0,0.0002125,2]
[401366140,1768158645927,-3000.0,0.0002126,2]
[401366142,1768158645937,-1028.111698,0.0002126,2]
[401366144,1768158645946,-1028.111698,0.0002126,2]
[401366146,1768158645955,-216.089114,0.0002126,2]
[401366148,1768158645964,-1028.111698,0.0002126,2]
[401366150,1768158645973,-216.089114,0.0002126,2]
[401366152,1768158645982,-1028.111698,0.0002126,2]
[401366154,1768158645992,-216.089114,0.0002126,2]
[401366157,1768158646001,-216.089114,0.0002126,2]
[401366160,1768158646010,-3000.0,0.0002127,2]
[401366163,1768158646021,-611.55196731,0.00021272,11]
[401366166,1768158646030,-3000.0,0.0002128,2]
[401366169,1768158646039,-3000.0,0.0002129,2]
[401366171,1768158646048,-888.42391167,0.00021298,2]
[401366173,1768158646057,-3000.0,0.000213,2]
[401366175,1768158646067,-3000.0,0.0002131,2]
[401366177,1768158646076,-3000.0,0.0002132,2]
[401366179,1768158646085,-175.972983,0.0002132,2]
[401366181,1768158646094,-3000.0,0.0002133,2]
[401366183,1768158646103,-3000.0,0.0002134,2]
[401366185,1768158646112,-3000.0,0.0002135,2]
[401366186,1768158646122,-3000.0,0.0002136,2]
[401366188,1768158646133,-7623.1209168,0.0002137,2]
[401366190,1768158646142,-3000.0,0.0002137,2]
[401366192,1768158646151,-3000.0,0.0002138,2]
[401366194,1768158646160,-3000.0,0.0002139,2]
[401366196,1768158646169,-3000.0,0.000214,2]
[401366198,1768158646179,-473.45,0.000214,2]
[401366200,1768158646188,-3000.0,0.0002141,2]
[401366202,1768158646197,-3000.0,0.0002142,2]
[401366204,1768158646206,-5085.760285,0.0002143,2]
[401366206,1768158646215,-342.0,0.00021487,2]
[401366208,1768158646225,-153.66,0.000215,2]
[401366210,1768158646235,-151.0,0.000215,4]
[401366212,1768158646243,-397.0,0.00021665,2]
[401366214,1768158646253,-151.0,0.000217,4]
[401366225,1768158646350,-2524.53827378,0.00021723,2]
[401366227,1768158646359,-171.47,0.00021833,2]
[401366229,1768158646371,-512.0,0.00021886,2]
[401366231,1768158646380,-473.45,0.000219,2]
[401366233,1768158646390,-151.292503,0.00021918,2]
[401366236,1768158646399,-216.477355,0.00021918,2]
[401366238,1768158646409,-216.477355,0.00021918,2]
[401366240,1768158646418,-216.477355,0.00021918,2]
[401366243,1768158646428,-151.0,0.00021918,2]
[401366245,1768158646437,-216.477355,0.00021918,2]
[401366247,1768158646446,-151.0,0.00021918,2]
[401366249,1768158646455,-151.0,0.00021918,2]
[401366251,1768158646465,-152.567384,0.00021918,2]
[401366253,1768158646474,-151.0,0.00021918,2]
[401366255,1768158646484,-161.662681,0.00021918,2]
[401366257,1768158646493,-189.77985,0.00021918,2]
[401366259,1768158646503,-499.381508,0.00021918,2]
[401366261,1768158646512,-189.77985,0.00021918,2]
[401366263,1768158646521,-499.381508,0.00021918,2]
[401366265,1768158646531,-189.77985,0.00021918,2]
[401366267,1768158646541,-499.381508,0.00021918,2]
[401366269,1768158646550,-499.381508,0.00021918,2]
[401366271,1768158646559,-189.77985,0.00021918,2]
[401366273,1768158646568,-151.0,0.00021918,2]
[401366275,1768158646581,-151.0,0.00021918,2]
[401366277,1768158646590,-218.019088,0.00021918,2]
[401366279,1768158646599,-151.0,0.00021918,2]
[401366281,1768158646608,-151.0,0.00021918,2]
[401366283,1768158646619,-151.0,0.00021918,2]
[401366285,1768158646629,-1469.964618,0.00021918,2]
[401366287,1768158646639,-151.0,0.00021918,2]
[401366289,1768158646652,-151.0,0.00021918,2]
[401366291,1768158646662,-151.0,0.00021918,2]
[401366293,1768158646671,-151.0,0.00021918,2]
[401366295,1768158646680,-177.021856,0.00021918,2]
[401366296,1768158646689,-151.0,0.00021918,2]
[401366297,1768158646698,-165.523557,0.00021918,2]
[401366298,1768158646707,-165.523557,0.00021918,2]
[401366299,1768158646716,-165.523557,0.00021918,2]
[401366300,1768158646725,-165.523557,0.00021918,2]
[401366301,1768158646734,-728.329358,0.00021918,2]
[401366303,1768158646743,-728.329358,0.00021918,2]
[401366305,1768158646753,-728.329358,0.00021918,2]
[401366306,1768158646762,-728.329358,0.00021918,2]
[401366308,1768158646771,-151.0,0.00021918,2]
[401366309,1768158646780,-151.0,0.00021918,2]
[401366310,1768158646789,-306.783496,0.00021918,2]
[401366311,1768158646798,-306.783496,0.00021918,2]
[401366312,1768158646807,-306.783496,0.00021918,2]
[401366313,1768158646816,-306.783496,0.00021918,2]
[401366314,1768158646825,-319.326659,0.00021918,2]
[401366315,1768158646835,-319.326659,0.00021918,2]
[401366316,1768158646843,-319.326659,0.00021918,2]
[401366317,1768158646852,-151.0,0.00021918,2]
[401366318,1768158646862,-151.0,0.00021918,2]
[401366319,1768158646871,-319.326659,0.00021918,2]
[401366320,1768158646881,-151.0,0.00021918,2]
[401366321,1768158646890,-151.0,0.00021918,2]
[401366322,1768158646900,-151.0,0.00021918,2]
[401366323,1768158646909,-271.744506,0.00021918,2]
[401366324,1768158646919,-151.0,0.00021918,2]
[401366325,1768158646928,-152.205819,0.00021918,2]
[401366326,1768158646938,-1638.845663,0.00021918,2]
[401366327,1768158646947,-1638.845663,0.00021918,2]
[401366328,1768158646956,-1638.845663,0.00021918,2]
[401366329,1768158646965,-1638.845663,0.00021918,2]
[401366330,1768158646975,-1638.845663,0.00021918,2]
[401366331,1768158646984,-1638.845663,0.00021918,2]
[401366332,1768158646995,-1638.845663,0.00021918,2]
[401366333,1768158647003,-1638.845663,0.00021918,2]
[401366334,1768158647013,-323.453426,0.00021918,2]
[401366336,1768158647022,-323.453426,0.00021918,2]
[401366337,1768158647031,-323.453426,0.00021918,2]
[401366338,1768158647040,-323.453426,0.00021918,2]
[401366339,1768158647049,-323.453426,0.00021918,2]
[401366340,1768158647059,-323.453426,0.00021918,2]
[401366342,1768158647067,-323.453426,0.00021918,2]
[401366344,1768158647076,-323.453426,0.00021918,2]
[401366345,1768158647085,-764.1,0.00022071,2]
[401366346,1768158647095,-2524.53827378,0.00022151,2]
[401366347,1768158647104,-2524.53827378,0.00022254,2]
[401366348,1768158647113,-153.66,0.000223,2]
[401366349,1768158647123,-3531.51592172,0.00022317,2]
[401366350,1768158647132,-1857.1180639,0.00022317,2]
[401366351,1768158647141,-7421.04378336,0.00022317,2]
[401366352,1768158647150,-431.088,0.000224,2]
[401366353,1768158647160,-178.052,0.000224,2]
[401366354,1768158647168,-473.45,0.000224,2]
[401366355,1768158647177,-300.0,0.00022466,2]
[401366356,1768158647187,-32701.71,0.000225,2]
[401366357,1768158647196,-611.55196731,0.00022548,12]
[401366358,1768158647205,-3271.44,0.000226,14]
[401366359,1768158647215,-2524.53827378,0.00022601,2]
[401366360,1768158647225,-1000.0,0.00022637,10]
[401366361,1768158647234,-1000.0,0.00022637,10]
[401366362,1768158647243,-1000.0,0.00022637,10]
[401366363,1768158647253,-151.0,0.000228,10]
[401366364,1768158647262,-2524.53827378,0.00022821,2]
[401366365,1768158647271,-164.08,0.000229,7]
[401366366,1768158647281,-162.99,0.000229,7]
[401366367,1768158647290,-865.36141635,0.00022935,2]
[401366368,1768158647299,-3457.98421973,0.00022935,2]
[401366369,1768158647309,-660.42294082,0.00022935,2]
[401366370,1768158647319,-2641.69176329,0.00022935,2]
[401366371,1768158647329,-5943.8064674,0.00022935,2]
[401366372,1768158647339,-5861.01138056,0.00022997,2]
[401366373,1768158647349,-473.45,0.00023,2]
[401366374,1768158647359,-450.0,0.00023014,2]
[401366375,1768158647368,-153.66,0.000231,2]
[401366376,1768158647377,-2524.53827378,0.00023157,2]
[401366377,1768158647387,-965.30675018,0.00023298,2]
[401366378,1768158647396,-2524.53827378,0.00023365,2]
[401366379,1768158647406,-3685.53057,0.00023492,2]
[401366380,1768158647415,-3685.53057,0.00023492,2]
[401366381,1768158647423,-248.949419,0.00023492,2]
[401366382,1768158647433,-3685.53057,0.00023492,2]
[401366383,1768158647442,-248.949419,0.00023492,2]
[401366384,1768158647451,-3685.53057,0.00023492,2]
[401366385,1768158647460,-248.949419,0.00023492,2]
[401366386,1768158647470,-248.949419,0.00023492,2]
[401366387,1768158647479,-151.0,0.00023492,2]
[401366388,1768158647489,-151.0,0.00023492,2]
[401366389,1768158647499,-151.0,0.00023492,2]
[401366390,1768158647508,-151.0,0.00023492,2]
[401366391,1768158647517,-151.0,0.00023492,2]
[401366392,1768158647527,-2452.68401187,0.00023492,2]
[401366393,1768158647536,-600.0,0.00023562,2]
[401366394,1768158647544,-764.1,0.00023564,2]
[401366395,1768158647553,-2524.53827378,0.00023587,2]
[401366396,1768158647562,-151.0,0.000238,9]
[401366397,1768158647572,-611.55196731,0.00023825,14]
[401366398,1768158647584,-153.66,0.000239,2]
[401366399,1768158647594,-32701.71,0.000239,2]
[401366400,1768158647603,-2524.53827378,0.00024043,2]
[401366401,1768158647612,-733.98308473,0.0002411,2]
[401366402,1768158647623,-715.80360402,0.00024142,2]
[401366403,1768158647631,-5109.84211961,0.00024142,2]
[401366404,1768158647640,-8074.69000495,0.00024142,2]
[401366405,1768158647649,-192.160497,0.00024142,2]
[401366406,1768158647659,-2863.21441607,0.00024142,2]
[401366407,1768158647668,-311.9568903,0.00024142,2]
[401366408,1768158647677,-1247.82756118,0.00024142,2]
[401366409,1768158647687,-2807.61201266,0.00024142,2]
[401366410,1768158647696,-454.95629602,0.00024142,2]
[401366411,1768158647705,-1818.00535888,0.00024142,2]
[401366412,1768158647714,-1289.12094854,0.00024142,2]
[401366413,1768158647724,-915.28287075,0.00024142,2]
[401366414,1768158647732,-3661.13148302,0.00024142,2]
[401366415,1768158647742,-717.19444566,0.00024142,2]
[401366416,1768158647752,-2868.77778265,0.00024142,2]
[401366417,1768158647763,-6448.29526095,0.00024142,2]
[401366418,1768158647772,-324.2785502,0.00024142,2]
[401366419,1768158647783,-1295.8170866,0.00024142,2]
[401366420,1768158647792,-4991.31024474,0.00024142,2]
[401366421,1768158647802,-2524.53827378,0.00024187,2]
[401366422,1768158647811,-3271.44,0.000242,14]
[401366423,1768158647821,-399.4822568,0.00024494,2]
[401366424,1768158647830,-975.1913482,0.00024501,2]
[401366425,1768158647839,-3403.7501112,0.00024504,2]
[401366426,1768158647849,-9679.59281,0.00024504,2]
[401366427,1768158647858,-1266.4639275,0.00024504,2]
[401366428,1768158647867,-1123.6376668,0.00024504,2]
[401366429,1768158647876,-153.66,0.000246,2]
[401366430,1768158647886,-2524.53827378,0.00024606,2]
[401366431,1768158647896,-500.0,0.00024658,2]
[401366432,1768158647906,-107142.88,0.000247,3]
[401366433,1768158647915,-151.0,0.00024747,2]
[401366434,1768158647925,-151.0,0.00024747,2]
[401366435,1768158647935,-311.85701,0.00024747,2]
[401366436,1768158647946,-151.0,0.00024747,2]
[401366437,1768158647957,-2030.29667201,0.00024747,2]
[401366438,1768158647967,-151.0,0.00024747,2]
[401366439,1768158647977,-151.0,0.00024747,2]
[401366440,1768158647988,-151.0,0.00024747,2]
[401366441,1768158647998,-151.0,0.00024747,2]
[401366442,1768158648008,-496.47127164,0.00024747,2]
[401366443,1768158648020,-151.0,0.00024747,2]
[401366444,1768158648030,-151.0,0.00024747,2]
[401366445,1768158648040,-151.0,0.00024747,2]
[401366446,1768158648050,-151.0,0.00024747,2]
[401366447,1768158648060,-500.0,0.00024747,2]
[401366448,1768158648070,-151.0,0.00024747,2]
[401366449,1768158648080,-151.0,0.00024747,2]
[401366450,1768158648090,-500.0,0.00024747,2]
[401366451,1768158648100,-151.0,0.00024747,2]
[401366452,1768158648109,-151.0,0.00024747,2]
[401366453,1768158648118,-151.0,0.00024747,2]
[401366454,1768158648128,-500.0,0.00024747,2]